bitfinex-derivatives/quotes_SOLF0:USTF0_20260110
["timestamp","ask_amount","ask_price","bid_price","bid_amount"]
[1768033553201,0.05536902,136.12,136.05,93.4434]
[1768033553402,0.05536902,136.12,136.05,86.82]
[1768033554612,0.05536902,136.12,136.06,6.6232]
[1768033560518,0.05536902,136.12,136.07,6.6227]
[1768033563520,0.05536902,136.12,136.08,6.6222]
[1768033610137,0.05536902,136.12,136.06,6.623]
[1768033619346,0.05536902,136.12,136.08,6.6222]
[1768033635355,0.05536902,136.12,136.09,6.6217]
[1768033657877,0.05536902,136.12,136.07,6.6224]
[1768033658070,0.05536902,136.12,136.05,189.8542]
[1768033659576,0.05536902,136.12,136.08,6.6222]
[1768033690204,0.05536902,136.12,136.09,6.6215]
[1768033690504,0.31899334,136.15,136.09,6.67336769]
[1768033690703,5.5164347,136.14,136.09,6.67336769]
[1768033690909,0.31899334,136.15,136.09,6.67336769]
[1768033691206,5.51623513,136.14,136.09,6.67336769]
[1768033691408,1.77899334,136.15,136.09,6.67336769]
[1768033691598,5.51607205,136.14,136.09,6.67336769]
[1768033691799,1.77899334,136.15,136.09,6.67336769]
[1768033692106,5.51607205,136.14,136.09,6.67336769]
[1768033692307,1.77899334,136.15,136.09,6.67336769]
[1768033692504,5.51588578,136.14,136.09,6.67336769]
[1768033692800,1.77899334,136.15,136.09,6.67336769]
[1768033693003,5.5158856,136.14,136.09,6.67336769]
[1768033693205,1.77899334,136.15,136.09,6.67336769]
[1768033693404,5.51571335,136.14,136.09,6.67336769]
[1768033693600,1.77899334,136.15,136.09,6.67336769]
[1768033693805,5.51571335,136.14,136.09,6.67336769]
[1768033694005,1.77899334,136.15,136.09,6.67336769]
[1768033694207,5.51560751,136.14,136.09,6.67336769]
[1768033694412,1.77899334,136.15,136.09,6.67336769]
[1768033694602,5.51555309,136.14,136.09,6.67336769]
[1768033694897,1.77899334,136.15,136.09,6.67336769]
[1768033695101,5.51555309,136.14,136.09,6.67336769]
[1768033695302,1.77899334,136.15,136.09,6.67336769]
[1768033695502,5.51540366,136.14,136.09,6.67336769]
[1768033695707,1.77899334,136.15,136.09,6.67336769]
[1768033696003,5.51540366,136.14,136.09,6.67336769]
[1768033696208,1.77899334,136.15,136.09,6.67336769]
[1768033696807,5.51526413,136.14,136.09,6.67336769]
[1768033697005,1.77899334,136.15,136.09,6.67336769]
[1768033697406,5.51520348,136.14,136.09,6.67336769]
[1768033697607,1.77899334,136.15,136.09,6.67336769]
[1768033697908,5.51520348,136.14,136.09,6.67336769]
[1768033698102,1.77899334,136.15,136.09,6.67336769]
[1768033698316,86.84,136.18,136.09,0.05186769]
[1768033698317,0.3000465,136.13,136.09,0.05186769]
[1768033698717,0.3000465,136.13,136.07,6.6224]
[1768033700012,0.3000465,136.13,136.08,6.6222]
[1768033706428,0.3000465,136.15,136.08,6.6222]
[1768033706629,5.51543982,136.14,136.06,103.0288]
[1768033706830,0.3000465,136.15,136.06,103.0288]
[1768033707025,5.51504431,136.14,136.06,103.0288]
[1768033707328,0.3000465,136.15,136.06,103.0288]
[1768033707527,5.5149139,136.14,136.09,6.6217]
[1768033707719,0.3000465,136.15,136.09,6.6217]
[1768033707919,5.5149139,136.14,136.09,6.6217]
[1768033708121,0.3000465,136.15,136.09,6.6217]
[1768033708331,5.51479962,136.14,136.09,6.6217]
[1768033708529,0.3000465,136.15,136.09,6.6217]
[1768033708729,5.51479962,136.14,136.09,6.6217]
[1768033708930,0.3000465,136.15,136.09,6.6217]
[1768033709126,5.51479962,136.14,136.09,6.6217]
[1768033709425,0.3000465,136.15,136.09,6.6217]
[1768033709625,5.51469291,136.14,136.09,6.6217]
[1768033709827,0.3000465,136.15,136.09,6.6217]
[1768033710027,5.51469291,136.14,136.09,6.6217]
[1768033710225,0.3000465,136.15,136.09,6.6217]
[1768033710426,5.51459336,136.14,136.09,6.6217]
[1768033710629,0.3000465,136.15,136.09,6.6217]
[1768033710826,5.51459336,136.14,136.09,6.6217]
[1768033711029,0.3000465,136.15,136.09,6.6217]
[1768033711226,5.51456886,136.14,136.09,6.6217]
[1768033711426,0.3000465,136.15,136.09,6.6217]
[1768033711627,5.51450061,136.14,136.09,6.6217]
[1768033711832,0.3000465,136.15,136.09,6.6217]
[1768033712028,5.51450061,136.14,136.09,6.6217]
[1768033712222,0.3000465,136.15,136.09,6.6217]
[1768033712428,5.51441434,136.14,136.09,6.6217]
[1768033712633,0.3000465,136.15,136.09,6.6217]
[1768033712826,5.51441434,136.14,136.09,6.6217]
[1768033713027,0.3000465,136.15,136.09,6.6217]
[1768033713327,5.51440337,136.14,136.09,6.6217]
[1768033713528,0.3000465,136.15,136.09,6.6217]
[1768033713828,5.51460824,136.14,136.09,6.6217]
[1768033714029,0.3000465,136.15,136.09,6.6217]
[1768033714229,5.51460266,136.14,136.09,6.6217]
[1768033714430,0.3000465,136.15,136.09,6.6217]
[1768033714636,5.51482938,136.14,136.09,6.6217]
[1768033714838,0.3000465,136.15,136.09,6.6217]
[1768033715039,5.51482938,136.14,136.09,6.6217]
[1768033715233,0.3000465,136.15,136.09,6.6217]
[1768033715440,5.51500664,136.14,136.09,6.6217]
[1768033715638,0.3000465,136.15,136.09,6.6217]
[1768033715831,5.51500664,136.14,136.09,6.6217]
[1768033716032,0.3000465,136.15,136.09,6.6217]
[1768033716233,5.51515995,136.14,136.09,6.6217]
[1768033716439,0.3000465,136.15,136.09,6.6217]
[1768033716640,5.51515995,136.14,136.09,6.6217]
[1768033716842,0.3000465,136.15,136.09,6.6217]
[1768033717036,5.51515995,136.14,136.09,6.6217]
[1768033717338,0.3000465,136.15,136.09,6.6217]
[1768033718041,5.50410554,136.14,136.09,6.6217]
[1768033718238,0.3000465,136.15,136.09,6.6217]
[1768033718536,5.50438828,136.14,136.09,6.6217]
[1768033718738,0.3000465,136.15,136.09,6.6217]
[1768033718936,5.50438828,136.14,136.09,6.6217]
[1768033719134,0.3000465,136.15,136.09,6.6217]
[1768033719342,5.50475368,136.14,136.09,6.6217]
[1768033719539,0.3000465,136.15,136.09,6.6217]
[1768033719741,5.50475368,136.14,136.09,6.6217]
[1768033720040,0.3000465,136.15,136.09,6.6217]
[1768033720240,5.50463966,136.14,136.09,6.6217]
[1768033720432,0.3000465,136.15,136.09,6.6217]
[1768033720637,5.50463966,136.14,136.09,6.6217]
[1768033720837,0.3000465,136.15,136.09,6.6217]
[1768033721038,5.50463966,136.14,136.09,6.6217]
[1768033721241,0.3000465,136.15,136.09,6.6217]
[1768033721438,5.5045463,136.14,136.09,6.6217]
[1768033721639,0.3000465,136.15,136.09,6.6217]
[1768033721840,5.5045463,136.14,136.09,6.6217]
[1768033722042,0.3000465,136.15,136.09,6.6217]
[1768033722244,5.50446385,136.14,136.09,6.6217]
[1768033722447,0.3000465,136.15,136.09,6.6217]
[1768033722645,5.50447174,136.14,136.09,6.6217]
[1768033722847,0.3000465,136.15,136.09,6.6217]
[1768033723146,5.50447173,136.14,136.09,6.6217]
[1768033723347,0.3000465,136.15,136.09,6.6217]
[1768033723548,5.50441753,136.14,136.09,6.6217]
[1768033723845,0.3000465,136.15,136.09,6.6217]
[1768033724146,5.50441753,136.14,136.09,6.6217]
[1768033724442,0.3000465,136.15,136.09,6.6217]
[1768033724643,5.50438099,136.14,136.09,6.6217]
[1768033724842,0.3000465,136.15,136.09,6.6217]
[1768033725041,5.50438099,136.14,136.09,6.6217]
[1768033725245,0.3000465,136.15,136.09,6.6217]
[1768033725546,5.50433411,136.14,136.09,6.6217]
[1768033725846,0.3000465,136.15,136.09,6.6217]
[1768033726142,5.50433411,136.14,136.09,6.6217]
[1768033726444,0.3000465,136.15,136.09,6.6217]
[1768033726635,5.50428608,136.14,136.09,6.6217]
[1768033726837,0.3000465,136.15,136.09,6.6217]
[1768033727136,5.50428608,136.14,136.09,6.6217]
[1768033727337,0.3000465,136.15,136.09,6.6217]
[1768033727632,5.50425068,136.14,136.09,6.6217]
[1768033727836,0.3000465,136.15,136.09,6.6217]
[1768033728031,5.50425068,136.14,136.09,6.6217]
[1768033728237,0.3000465,136.15,136.09,6.6217]
[1768033728432,5.50424667,136.14,136.09,6.6217]
[1768033728637,0.3000465,136.15,136.09,6.6217]
[1768033728838,5.50424667,136.14,136.09,6.6217]
[1768033729137,0.3000465,136.15,136.09,6.6217]
[1768033729436,5.50425662,136.14,136.09,6.6217]
[1768033729638,0.3000465,136.15,136.09,6.6217]
[1768033729840,5.50425662,136.14,136.09,6.6217]
[1768033730142,0.3000465,136.15,136.09,6.6217]
[1768033730340,5.5042806,136.14,136.09,6.6217]
[1768033730540,0.3000465,136.15,136.09,6.6217]
[1768033730749,5.5042806,136.14,136.09,6.6217]
[1768033730950,0.3000465,136.15,136.09,6.6217]
[1768033731149,5.5042806,136.14,136.09,6.6217]
[1768033731350,0.3000465,136.15,136.09,6.6217]
[1768033731552,5.50469175,136.14,136.09,6.6217]
[1768033731751,0.3000465,136.15,136.09,6.6217]
[1768033732049,5.50469175,136.14,136.09,6.6217]
[1768033732237,0.3000465,136.15,136.09,6.6217]
[1768033732437,5.50479516,136.14,136.09,6.6217]
[1768033732641,0.3000465,136.15,136.09,6.6217]
[1768033732850,5.50479516,136.14,136.09,6.6217]
[1768033733053,0.3000465,136.15,136.09,6.6217]
[1768033733349,5.50490489,136.14,136.09,6.6217]
[1768033733549,0.3000465,136.15,136.09,6.6217]
[1768033733750,5.50490489,136.14,136.09,6.6217]
[1768033733951,0.3000465,136.15,136.09,6.6217]
[1768033734139,5.50490489,136.14,136.09,6.6217]
[1768033734341,0.3000465,136.15,136.09,6.6217]
[1768033734537,5.5050214,136.14,136.09,6.6217]
[1768033734750,0.3000465,136.15,136.09,6.6217]
[1768033734950,5.50502139,136.14,136.09,6.6217]
[1768033735250,0.3000465,136.15,136.09,6.6217]
[1768033735452,5.50514524,136.14,136.09,6.6217]
[1768033735649,0.3000465,136.15,136.09,6.6217]
[1768033735851,5.50514524,136.14,136.09,6.6217]
[1768033736038,0.3000465,136.15,136.09,6.6217]
[1768033736247,5.50515818,136.14,136.09,6.6217]
[1768033736545,0.3000465,136.15,136.09,6.6217]
[1768033736841,5.50515818,136.14,136.09,6.6217]
[1768033737043,0.3000465,136.15,136.09,6.6217]
[1768033737250,5.50515544,136.14,136.09,6.6217]
[1768033737438,0.3000465,136.15,136.09,6.6217]
[1768033737643,5.50515544,136.14,136.09,6.6217]
[1768033737937,0.3000465,136.15,136.09,6.6217]
[1768033738141,5.50515544,136.14,136.09,6.6217]
[1768033738340,0.3000465,136.15,136.09,6.6217]
[1768033738545,5.5051528,136.14,136.09,6.6217]
[1768033738839,0.3000465,136.15,136.09,6.6217]
[1768033739038,5.5051528,136.14,136.09,6.6217]
[1768033739245,0.3000465,136.15,136.09,6.6217]
[1768033739544,5.50515023,136.14,136.09,6.6217]
[1768033739843,0.3000465,136.15,136.09,6.6217]
[1768033740039,5.50515027,136.14,136.09,6.6217]
[1768033740252,0.3000465,136.15,136.07,6.6224]
[1768033740550,5.50510361,136.14,136.07,6.6224]
[1768033740755,0.3000465,136.15,136.07,6.6224]
[1768033740953,5.50510361,136.14,136.07,6.6224]
[1768033741149,0.3000465,136.15,136.07,6.6224]
[1768033741348,5.50510361,136.14,136.07,6.6224]
[1768033741649,0.3000465,136.15,136.07,6.6224]
[1768033741840,5.50509974,136.14,136.07,6.6224]
[1768033742045,0.3000465,136.15,136.07,6.6224]
[1768033742253,5.50509974,136.14,136.07,6.6224]
[1768033742454,0.3000465,136.15,136.07,6.6224]
[1768033742653,5.50514681,136.14,136.07,6.6224]
[1768033742850,0.3000465,136.15,136.07,6.6224]
[1768033743050,5.50514681,136.14,136.07,6.6224]
[1768033743251,0.3000465,136.15,136.07,6.6224]
[1768033743550,5.50514326,136.14,136.07,6.6224]
[1768033743747,0.3000465,136.15,136.07,6.6224]
[1768033743946,5.50514326,136.14,136.07,6.6224]
[1768033744148,0.3000465,136.15,136.07,6.6224]
[1768033744348,5.50532592,136.14,136.07,6.6224]
[1768033744555,0.3000465,136.15,136.07,6.6224]
[1768033744755,5.505369,136.14,136.07,6.6224]
[1768033745054,6.9190465,136.15,136.07,6.6224]
[1768033745253,0.3178679,136.13,136.06,6.6232]
[1768033745553,5.50575962,136.12,136.06,6.6232]
[1768033745855,0.3178679,136.13,136.06,6.6232]
[1768033746058,5.50576317,136.12,136.06,6.6232]
[1768033746355,0.3178679,136.13,136.06,6.6232]
[1768033746549,5.50492519,136.12,136.06,6.6232]
[1768033746749,6.9378679,136.13,136.06,6.6232]
[1768033746947,5.50492519,136.12,136.06,6.6232]
[1768033747143,6.9383679,136.12,136.04,7.77658965]
[1768033747344,0.3178679,136.11,136.03,86.84]
[1768033747748,0.3178679,136.11,136.02,104.20788965]
[1768033747950,6.9388679,136.11,136.02,1.15278965]
[1768033748659,0.3178679,136.09,135.99,86.84]
[1768033748950,0.3178679,136.07,135.99,86.84]
[1768033749155,0.3178679,136.07,135.98,1.15278965]
[1768033749548,0.3178679,136.07,136.0,6.6259]
[1768033750360,6.9403679,136.08,136.0,6.6259]
[1768033757169,0.3178679,136.08,136.0,6.6259]
[1768033758867,0.3178679,136.11,136.02,1.15278965]
[1768033759967,0.3178679,136.11,136.03,6.6246]
[1768033759968,6.9388679,136.11,136.03,6.6246]
[1768033763571,0.3178679,136.1,136.03,6.6246]
[1768033764876,0.3178679,136.1,136.05,0.05010233]
[1768033771780,0.3178679,136.09,136.05,0.05010233]
[1768033783192,0.31933597,136.11,136.05,0.05010233]
[1768033800710,0.31933597,136.11,136.05,6.67380233]
[1768033801203,0.31035968,136.1,136.05,0.05010233]
[1768033803212,0.32783389,136.09,136.05,0.05010233]
[1768033818719,0.052354,136.08,136.03,6.6243]
[1768033818921,0.32783389,136.07,136.03,6.6243]
[1768033826733,0.052354,136.08,136.03,6.6243]
[1768033828134,0.052354,136.08,136.04,6.6242]
[1768033828837,0.32783389,136.09,136.04,6.6242]
[1768033829027,0.04810013,136.07,136.04,6.6242]
[1768033838637,0.04810013,136.07,136.0,88.03366762]
[1768033839533,0.04810013,136.07,136.03,6.6246]
[1768033845049,0.04810013,136.07,136.0,191.10576762]
[1768033845050,0.04810013,136.07,136.04,6.6239]
[1768033856860,0.30385297,136.11,136.04,6.6239]
[1768033857358,0.30385297,136.11,136.05,6.6235]
[1768033861564,0.30385297,136.1,136.03,6.6244]
[1768033864058,5.8870388,136.09,136.03,6.6244]
[1768033864253,0.31218136,136.09,136.03,6.6244]
[1768033890875,5.89121624,136.08,136.01,6.6253]
[1768033891070,0.31218136,136.08,136.0,86.88]
[1768033892280,0.31218136,136.08,136.0,93.5059]
[1768033894383,0.31218136,136.08,136.01,6.6256]
[1768033906294,6.93458136,136.08,136.01,6.6256]
[1768033906694,6.93458136,136.08,136.0,86.88]
[1768033907595,6.94368275,136.07,136.0,86.88]
[1768033907795,0.32088275,136.06,136.0,86.88]
[1768033908195,0.32088275,136.06,135.99,6.6262]
[1768033912192,6.94418275,136.06,135.97,93.5073]
[1768033912400,0.33230413,136.05,135.97,86.88]
[1768033913593,0.33230413,136.05,135.98,6.6271]
[1768033921795,0.33230413,136.04,135.94,9.14203148]
[1768033922002,0.33230413,136.04,135.94,86.9]
[1768033923594,0.33230413,136.04,135.96,6.628]
[1768033928001,6.6241,136.05,135.97,6.6273]
[1768033930808,6.6241,136.05,136.0,0.05052625]
[1768033931515,0.31206496,136.06,136.0,0.05052625]
[1768033942125,0.31206496,136.06,136.0,6.67662625]
[1768033947227,0.31206496,136.06,136.0,0.05052625]
[1768033959335,6.6233,136.06,136.0,0.05052625]
[1768033959550,0.30507069,136.05,136.0,0.05052625]
[1768033969845,0.30507069,136.04,136.0,0.05052625]
[1768033971647,0.31233522,136.03,136.0,0.05052625]
[1768033974254,0.36647275,136.03,135.96,6.6277]
[1768033979252,0.36647275,136.03,135.96,1.15418546]
[1768033980553,0.36647275,136.03,135.98,6.6271]
[1768033985547,0.05413753,136.03,135.99,6.6266]
[1768033995161,0.05413753,136.03,135.96,104.25608546]
[1768033996563,0.05413753,136.03,135.98,6.6271]
[1768034001261,0.35967114,136.03,135.96,6.6277]
[1768034001564,0.35967114,136.03,135.95,1.15418546]
[1768034002667,0.35967114,136.03,135.97,6.6276]
[1768034014678,6.67893753,136.03,135.94,102.67073148]
[1768034014976,0.32142806,136.01,135.94,6.6287]
[1768034015368,0.32142806,136.01,135.92,93.5298]
[1768034015574,0.05126488,135.99,135.92,93.5298]
[1768034017174,0.05126488,135.99,135.93,6.6295]
[1768034020279,0.05126488,135.99,135.93,7.78368546]
[1768034020482,0.05126488,135.99,135.93,6.6295]
[1768034022183,0.05126488,135.99,135.92,190.0342]
[1768034023782,0.05126488,135.99,135.95,6.6285]
[1768034041898,6.93386899,136.04,135.96,6.6281]
[1768034042099,6.35519034,136.03,135.96,6.6281]
[1768034042301,6.04602135,136.02,135.96,6.6281]
[1768034042601,0.30916899,136.03,135.96,6.6281]
[1768034042803,6.04671905,136.02,135.96,6.6281]
[1768034043004,0.30916899,136.03,135.96,6.6281]
[1768034043194,6.0469649,136.02,135.96,6.6281]
[1768034043397,0.30916899,136.03,135.96,6.6281]
[1768034043699,6.04741422,136.02,135.96,6.6281]
[1768034043903,0.30916899,136.03,135.96,6.6281]
[1768034044105,6.04741426,136.02,135.96,6.6281]
[1768034044308,0.30916899,136.03,135.96,6.6281]
[1768034044497,6.0481571,136.02,135.96,6.6281]
[1768034044698,0.30916899,136.03,135.96,6.6281]
[1768034044894,6.0481571,136.02,135.96,6.6281]
[1768034045106,0.30916899,136.03,135.96,6.6281]
[1768034045294,6.04894212,136.02,135.96,6.6281]
[1768034045497,0.30916899,136.03,135.96,6.6281]
[1768034045703,6.04894212,136.02,135.96,6.6281]
[1768034045905,0.30916899,136.03,135.96,6.6281]
[1768034046105,6.04894212,136.02,135.96,6.6281]
[1768034046308,0.30916899,136.03,135.96,6.6281]
[1768034046508,6.04978513,136.02,135.96,6.6281]
[1768034046709,0.30916899,136.03,135.96,6.6281]
[1768034046911,6.04978513,136.02,135.96,6.6281]
[1768034047101,6.05020375,136.01,135.96,6.6281]
[1768034047303,0.30916899,136.03,135.96,6.6281]
[1768034047596,6.05020367,136.02,135.96,6.6281]
[1768034047911,0.31736478,136.05,135.96,6.6281]
[1768034048116,6.24244559,136.04,135.96,6.6281]
[1768034048410,5.92508081,136.03,135.96,6.6281]
[1768034048710,5.92508081,136.02,135.96,6.6281]
[1768034048906,0.31736478,136.04,135.96,6.6281]
[1768034049107,5.92512578,136.03,135.96,6.6281]
[1768034049303,5.92512578,136.02,135.96,6.6281]
[1768034049504,0.31736478,136.04,135.96,6.6281]
[1768034049702,5.92553768,136.03,135.96,6.6281]
[1768034049910,0.31736478,136.04,135.96,6.6281]
[1768034050103,5.92553768,136.03,135.96,6.6281]
[1768034050298,5.92553768,136.02,135.97,6.6275]
[1768034050504,0.31736478,136.04,135.97,6.6275]
[1768034050703,5.92599694,136.03,135.97,6.6275]
[1768034050906,5.92599694,136.02,135.97,6.6275]
[1768034051108,0.31736478,136.04,135.97,6.6275]
[1768034051302,5.92647848,136.03,135.97,6.6275]
[1768034051504,5.92647848,136.02,135.97,6.6275]
[1768034051703,0.31736478,136.04,135.97,6.6275]
[1768034052001,5.92647719,136.03,135.97,6.6275]
[1768034052203,5.92647719,136.02,135.97,6.6275]
[1768034052405,0.31736478,136.04,135.97,6.6275]
[1768034052607,5.92698297,136.03,135.97,6.6275]
[1768034052906,5.92698297,136.02,135.97,6.6275]
[1768034053107,0.31736478,136.04,135.97,6.6275]
[1768034053311,5.92753055,136.03,135.97,6.6275]
[1768034053512,5.92753055,136.02,135.97,6.6275]
[1768034053712,0.31736478,136.04,135.97,6.6275]
[1768034054010,5.92753055,136.03,135.97,6.6275]
[1768034054211,5.92753055,136.02,135.97,6.6275]
[1768034054512,0.31736478,136.04,135.97,6.6275]
[1768034054713,5.92809244,136.03,135.97,6.6275]
[1768034054900,5.92809244,136.02,135.97,6.6275]
[1768034055105,0.31736478,136.04,135.97,6.6275]
[1768034055314,5.92868706,136.03,135.97,6.6275]
[1768034055512,5.92868706,136.02,135.97,6.6275]
[1768034055714,0.31736478,136.04,135.97,6.6275]
[1768034055909,5.92869023,136.03,135.97,6.6275]
[1768034056212,5.92869023,136.02,135.97,6.6275]
[1768034056414,0.31736478,136.04,135.97,6.6275]
[1768034056713,5.92352956,136.03,135.97,6.6275]
[1768034057014,5.92352956,136.02,135.97,6.6275]
[1768034057217,0.31736478,136.04,135.97,6.6275]
[1768034057514,5.92420515,136.03,135.97,6.6275]
[1768034057813,5.92420515,136.02,135.97,6.6275]
[1768034058114,0.31736478,136.04,135.97,6.6275]
[1768034058314,5.92493556,136.03,135.97,6.6275]
[1768034058506,5.92493556,136.02,135.97,6.6275]
[1768034058706,0.31736478,136.04,135.97,6.6275]
[1768034058909,5.92518207,136.03,135.97,6.6275]
[1768034059109,5.92518207,136.02,135.97,6.6275]
[1768034059310,0.31736478,136.04,135.97,6.6275]
[1768034059603,5.92578953,136.03,135.97,6.6275]
[1768034059810,5.92578953,136.02,135.97,6.6275]
[1768034060110,0.31736478,136.04,135.97,6.6275]
[1768034060313,5.92562933,136.03,135.97,6.6275]
[1768034060612,5.92562933,136.02,135.97,6.6275]
[1768034060810,0.31736478,136.04,135.97,6.6275]
[1768034061010,5.92562933,136.03,135.97,6.6275]
[1768034061309,5.92562933,136.02,135.97,6.6275]
[1768034061510,0.31736478,136.03,135.97,6.6275]
[1768034061809,5.92550721,136.02,135.97,6.6275]
[1768034062009,0.31736478,136.03,135.97,6.6275]
[1768034062209,5.92536259,136.02,135.97,6.6275]
[1768034062412,0.31736478,136.03,135.97,6.6275]
[1768034062611,5.92545259,136.02,135.97,6.6275]
[1768034062814,0.31736478,136.03,135.97,6.6275]
[1768034063012,6.2433416,136.02,135.97,6.6275]
[1768034063314,0.31736478,136.02,135.97,6.6275]
[1768034065415,0.31736478,136.02,135.98,0.04894335]
[1768034089544,0.3022724,136.05,135.98,6.67594335]
[1768034089843,0.3022724,136.03,135.98,6.67594335]
[1768034090034,5.76452901,136.02,135.98,6.67594335]
[1768034090236,0.3022724,136.03,135.98,6.67594335]
[1768034090436,5.76431127,136.02,135.98,6.67594335]
[1768034090632,0.3022724,136.03,135.98,6.67594335]
[1768034090837,5.76431127,136.02,135.98,6.67594335]
[1768034091037,0.3022724,136.03,135.98,6.67594335]
[1768034091238,5.76414166,136.02,135.98,6.67594335]
[1768034091438,0.3022724,136.03,135.98,6.67594335]
[1768034091640,5.76414166,136.02,135.98,6.67594335]
[1768034091840,0.3022724,136.03,135.98,6.67594335]
[1768034100551,6.6236,136.06,135.98,6.67594335]
[1768034100752,6.07581034,136.05,135.99,6.6265]
[1768034100947,5.76227184,136.04,135.99,6.6265]
[1768034101149,0.3135385,136.05,135.99,6.6265]
[1768034101352,5.76164945,136.04,135.99,6.6265]
[1768034101550,0.3135385,136.05,135.99,6.6265]
[1768034101746,5.74513608,136.04,135.99,6.6265]
[1768034101945,0.3135385,136.05,135.99,6.6265]
[1768034102150,5.74513089,136.04,135.99,6.6265]
[1768034102452,0.3135385,136.05,135.99,6.6265]
[1768034102663,5.74459894,136.04,135.99,6.6265]
[1768034102953,0.3135385,136.05,135.99,6.6265]
[1768034103160,5.74458633,136.04,135.99,6.6265]
[1768034103459,0.3135385,136.05,135.99,6.6265]
[1768034103754,5.74417497,136.04,135.99,6.6265]
[1768034103953,0.3135385,136.05,135.99,6.6265]
[1768034104153,5.74418094,136.04,135.99,6.6265]
[1768034104354,0.3135385,136.05,135.99,6.6265]
[1768034104554,5.7437806,136.04,135.99,6.6265]
[1768034104745,0.3135385,136.05,135.99,6.6265]
[1768034104946,5.7437806,136.04,135.99,6.6265]
[1768034105153,0.3135385,136.05,135.99,6.6265]
[1768034105359,5.74338865,136.04,135.99,6.6265]
[1768034105556,0.3135385,136.05,135.99,6.6265]
[1768034108057,0.3135385,136.05,136.0,6.6261]
[1768034115655,0.3135385,136.05,135.97,86.92]
[1768034115859,0.3135385,136.05,135.98,6.6269]
[1768034127162,0.3135385,136.05,135.99,6.6266]
[1768034142375,5.65126768,136.04,135.99,6.6266]
[1768034142676,0.3135385,136.05,135.99,6.6266]
[1768034142875,5.6513055,136.04,135.99,6.6266]
[1768034143066,0.3135385,136.05,135.99,6.6266]
[1768034143268,5.65185665,136.04,135.99,6.6266]
[1768034143468,0.3135385,136.05,135.99,6.6266]
[1768034143668,5.6518774,136.04,135.99,6.6266]
[1768034143873,0.3135385,136.05,135.99,6.6266]
[1768034144073,5.6518774,136.04,135.99,6.6266]
[1768034144276,0.3135385,136.05,135.99,6.6266]
[1768034144478,5.65260413,136.04,135.99,6.6266]
[1768034144678,0.3135385,136.05,135.99,6.6266]
[1768034144888,5.65260413,136.04,135.99,6.6266]
[1768034145181,0.3135385,136.05,135.99,6.6266]
[1768034145478,5.65262889,136.04,135.99,6.6266]
[1768034145678,0.3135385,136.05,135.99,6.6266]
[1768034145868,5.65262889,136.04,135.99,6.6266]
[1768034146068,0.3135385,136.05,135.99,6.6266]
[1768034146272,5.65273233,136.04,135.99,6.6266]
[1768034146571,0.3135385,136.05,135.99,6.6266]
[1768034146869,5.65274776,136.04,135.99,6.6266]
[1768034147178,0.3135385,136.05,135.99,6.6266]
[1768034147477,5.65285485,136.04,135.99,6.6266]
[1768034147677,0.3135385,136.05,135.99,6.6266]
[1768034147879,5.65285485,136.04,135.99,6.6266]
[1768034148079,0.3135385,136.05,135.99,6.6266]
[1768034148273,5.65286634,136.04,135.99,6.6266]
[1768034148474,0.3135385,136.05,135.99,6.6266]
[1768034148777,5.65299397,136.04,135.99,6.6266]
[1768034148978,0.3135385,136.05,135.99,6.6266]
[1768034149280,5.65299397,136.04,135.99,6.6266]
[1768034149468,0.3135385,136.05,135.99,6.6266]
[1768034149667,5.65320887,136.04,135.99,6.6266]
[1768034149878,0.3135385,136.05,135.99,6.6266]
[1768034150080,5.65320887,136.04,135.99,6.6266]
[1768034150276,0.3135385,136.05,135.99,6.6266]
[1768034150479,5.65338217,136.04,135.99,6.6266]
[1768034150675,0.3135385,136.05,135.99,6.6266]
[1768034150872,5.65338217,136.04,135.99,6.6266]
[1768034151176,0.3135385,136.05,135.99,6.6266]
[1768034151375,5.6533335,136.04,135.99,6.6266]
[1768034151570,0.3135385,136.05,135.99,6.6266]
[1768034151774,5.65334852,136.04,135.99,6.6266]
[1768034151974,0.3135385,136.05,135.99,6.6266]
[1768034152175,5.65336359,136.04,135.99,6.6266]
[1768034152384,0.3135385,136.05,135.99,6.6266]
[1768034152675,5.65334688,136.04,135.99,6.6266]
[1768034152967,0.3135385,136.05,135.99,6.6266]
[1768034153167,5.65334688,136.04,135.99,6.6266]
[1768034153366,0.3135385,136.05,135.99,6.6266]
[1768034153578,5.65333194,136.04,135.99,6.6266]
[1768034153782,0.3135385,136.05,135.99,6.6266]
[1768034153984,5.65335429,136.04,135.99,6.6266]